bitfinex/quotes_ETHUSD_20251021
["timestamp","ask_amount","ask_price","bid_price","bid_amount"]
[1761068744847,3.466,4031.0,4030.2,2.48124695]
[1761068745040,3.466,4031.0,4030.4,2.48112743]
[1761068745243,3.466,4031.0,4030.2,2.48124887]
[1761068745438,3.466,4031.0,4030.4,2.48108424]
[1761068745758,25.15603048,4031.9,4030.4,2.48108424]
[1761068745759,0.4317,4032.3,4030.5,0.16381081]
[1761068745976,2.70349948,4032.6,4029.7,1.5552]
[1761068745977,0.4317,4032.0,4029.7,1.5552]
[1761068746283,0.50688,4031.7,4029.9,2.48140656]
[1761068746463,2.48046632,4031.5,4029.3,0.1414]
[1761068746632,2.48090933,4030.8,4030.0,2.48133199]
[1761068746829,0.4317,4031.4,4029.4,2.48175907]
[1761068747058,2.70281161,4033.8,4029.6,2.746]
[1761068747059,0.2237,4031.6,4029.6,2.746]
[1761068747364,0.4317,4032.5,4030.0,2.48137383]
[1761068747559,1.0047,4032.4,4030.1,0.51941328]
[1761068747761,3.457,4032.3,4031.6,2.48039447]
[1761068747929,0.4317,4032.4,4031.6,2.48038633]
[1761068748132,3.455,4032.3,4030.8,0.3556]
[1761068748458,2.48010623,4032.1,4031.4,2.48052107]
[1761068748651,6.36673682,4032.2,4031.5,2.48044756]
[1761068748848,6.36673682,4032.2,4030.8,2.48089709]
[1761068748849,3.8867,4032.2,4031.6,2.48040445]
[1761068749051,0.4317,4032.2,4031.0,2.4807474]
[1761068749244,0.2237,4032.6,4031.7,2.48028573]
[1761068749245,3.455,4032.1,4031.7,2.48028573]
[1761068749439,0.6554,4032.6,4031.2,2.48065092]
[1761068749440,3.452,4032.0,4031.2,2.48065092]
[1761068749750,3.452,4031.9,4031.8,2.48024065]
[1761068749952,3.452,4031.9,4031.5,2.48040664]
[1761068750154,0.2237,4031.8,4031.5,2.48046252]
[1761068750568,0.2237,4031.8,4031.6,2.48039514]
[1761068750764,0.2237,4031.8,4031.3,0.124]
[1761068750947,0.5557,4031.7,4031.0,0.124]
[1761068751146,0.2237,4031.8,4031.5,2.48045907]
[1761068751470,3.572,4031.6,4031.5,2.48045907]
[1761068752058,0.124,4031.6,4031.5,2.48045907]
[1761068752244,0.124,4031.6,4031.4,2.48047084]
[1761068752450,0.124,4031.6,4031.1,0.64737417]
[1761068752649,0.124,4031.6,4031.1,2.48071246]
[1761068752887,0.4317,4031.5,4030.9,0.124]
[1761068753097,0.124,4031.6,4031.2,2.48064546]
[1761068753396,0.124,4031.2,4030.8,0.002]
[1761068753686,0.124,4031.2,4031.1,2.48071246]
[1761068754094,0.124,4031.2,4030.8,3.13025491]
[1761068754397,0.124,4031.2,4030.8,0.002]
[1761068754555,0.124,4031.0,4030.8,0.002]
[1761068755447,3.442,4031.1,4030.8,0.002]
[1761068755448,25.15663929,4030.9,4030.8,0.002]
[1761068755726,2.48114331,4030.4,4030.3,0.002]
[1761068755903,22.67580375,4031.3,4030.3,0.002]
[1761068756052,2.48114331,4030.4,4030.3,0.002]
[1761068756379,22.67580375,4031.6,4030.3,0.3576]
[1761068756684,2.48114331,4030.4,4030.3,0.3576]
[1761068756849,5.93514331,4030.4,4030.3,0.3576]
[1761068758692,2.06208,4031.0,4030.3,0.3576]
[1761068758865,2.48114331,4030.4,4030.3,0.3576]
[1761068759064,5.93414331,4030.4,4030.3,0.3576]
[1761068759395,2.48114331,4030.4,4030.3,0.3576]
[1761068759585,5.93414331,4030.4,4030.3,0.3576]
[1761068760504,2.48103879,4030.6,4030.3,0.3576]
[1761068760505,2.48104993,4030.6,4030.3,0.3576]
[1761068760675,3.452,4030.4,4030.3,0.3576]
[1761068760875,3.449,4030.4,4030.3,0.3576]
[1761068761396,3.449,4030.4,4030.3,0.002]
[1761068761983,3.9006,4030.4,4030.3,0.002]
[1761068762303,6.38174331,4030.4,4030.3,0.002]
[1761068762492,6.88862331,4030.4,4030.3,0.002]
[1761068762698,2.48028176,4031.8,4030.3,0.002]
[1761068762880,1.5283793,4033.0,4030.4,0.139]
[1761068762881,0.4516,4032.1,4030.4,0.139]
[1761068763081,3.6747,4031.9,4030.9,2.48083008]
[1761068763393,2.48034518,4031.7,4031.0,2.4807719]
[1761068763597,0.4516,4031.7,4030.7,0.64737417]
[1761068763765,0.4516,4031.7,4030.9,3.12820971]
[1761068763968,6.15496943,4031.9,4031.1,2.48066351]
[1761068764170,0.4516,4031.8,4030.8,0.64737417]
[1761068764383,0.4516,4031.8,4030.3,1.33724082]
[1761068764384,0.50688,4031.7,4030.7,0.64737417]
[1761068764604,0.50688,4031.5,4030.3,0.64937417]
[1761068764819,2.48114331,4030.4,4030.3,0.002]
[1761068765016,5.93114331,4030.4,4030.3,0.002]
[1761068765298,6.88962331,4030.4,4030.3,0.002]
[1761068765500,6.88962331,4030.4,4029.1,0.64737417]
[1761068765700,0.124,4029.4,4029.1,0.64737417]
[1761068765887,0.124,4029.2,4029.1,0.64737417]
[1761068766418,0.124,4029.2,4029.1,3.12931802]
[1761068766569,3.452,4029.5,4029.2,2.48186288]
[1761068766773,0.692,4029.5,4029.2,0.66690827]
[1761068767217,0.692,4029.5,4029.1,0.66690827]
[1761068767421,0.6602216,4032.3,4029.4,0.66690827]
[1761068767592,0.2184,4030.5,4030.1,2.4812771]
[1761068767800,0.2184,4030.5,4030.1,2.48132504]
[1761068768104,0.2184,4030.5,4030.1,2.481328]
[1761068768305,0.67,4031.0,4030.1,3.28722909]
[1761068768507,3.449,4030.7,4030.4,2.48109712]
[1761068768712,3.449,4030.7,4030.2,0.66690827]
[1761068768916,0.2184,4031.0,4030.2,0.66690827]
[1761068769118,0.4516,4031.7,4030.3,0.69172031]
[1761068769426,0.4516,4031.7,4030.1,0.139]
[1761068769427,0.4516,4031.6,4030.7,0.66690827]
[1761068769628,0.4516,4031.6,4030.6,0.66690827]
[1761068769796,2.48046632,4031.5,4030.6,2.48101998]
[1761068769991,2.4805324,4031.4,4030.6,3.14792825]
[1761068770190,0.4516,4031.5,4030.5,0.66690827]
[1761068770425,0.50688,4031.5,4030.3,0.66690827]
[1761068770749,0.2184,4030.4,4030.1,2.48130749]
[1761068770922,3.448,4030.7,4030.2,2.48126119]
[1761068771093,0.2184,4030.8,4030.0,0.66690827]
[1761068771094,3.447,4030.6,4030.0,0.66690827]
[1761068771295,3.447,4030.6,4029.7,0.66690827]
[1761068771516,0.4516,4030.5,4029.6,0.66690827]
[1761068771716,2.93268821,4030.5,4030.1,0.002]
[1761068772112,0.4516,4030.4,4030.1,0.002]
[1761068772324,2.93276534,4030.4,4030.1,0.002]
[1761068772700,0.4516,4030.3,4030.1,0.002]
[1761068772904,2.48126643,4030.2,4030.1,0.002]
[1761068773312,2.93286643,4030.2,4030.1,0.002]
[1761068773494,0.4516,4030.2,4030.1,0.002]
[1761068773825,3.8986,4030.6,4030.1,0.002]
[1761068774024,0.4516,4030.2,4030.1,0.002]
[1761068774426,3.44,4030.2,4030.1,0.002]
[1761068774615,0.67,4030.8,4030.2,2.48121547]
[1761068774820,0.2184,4030.8,4030.1,0.141]
[1761068775019,0.4516,4031.2,4030.1,0.141]
[1761068775020,3.439,4030.7,4030.1,2.62227176]
[1761068775195,3.439,4030.7,4030.3,2.481202]
[1761068775527,3.439,4030.7,4030.2,2.48124837]
[1761068775734,3.439,4030.7,4030.3,2.48119109]
[1761068776098,3.439,4030.7,4030.3,2.44863588]
[1761068776293,3.439,4030.7,4030.1,0.002]
[1761068776294,0.2184,4030.9,4030.1,0.141]
[1761068776494,3.436,4031.0,4030.1,0.141]
[1761068776918,3.436,4031.0,4030.9,2.48083554]
[1761068777438,3.436,4031.0,4030.6,2.48098761]
[1761068777439,3.434,4031.4,4031.0,2.48072711]
[1761068777648,0.124,4031.3,4031.0,2.48071419]
[1761068777827,0.124,4031.3,4030.6,0.124]
[1761068778000,0.124,4031.3,4031.0,2.48073245]
[1761068778200,0.124,4031.3,4030.6,2.60498796]
[1761068778431,0.4516,4031.2,4030.2,2.48126422]
[1761068778650,0.124,4030.5,4030.1,0.002]
[1761068778929,0.124,4030.5,4030.3,2.48120338]
[1761068779446,0.4623,4030.4,4030.1,0.002]
[1761068779945,2.481265,4030.3,4030.1,0.002]
[1761068780330,2.94356643,4030.2,4030.1,0.002]
[1761068780643,3.429,4030.2,4030.1,0.002]
[1761068780803,6.37256643,4030.2,4030.1,0.002]
[1761068782057,6.87944643,4030.2,4030.1,0.002]
[1761068784261,0.2245,4030.7,4030.1,0.002]
[1761068784579,2.48119777,4030.4,4030.1,0.002]
[1761068784728,2.48116577,4030.4,4030.1,0.002]
[1761068785067,2.98814643,4030.2,4030.1,0.002]
[1761068785468,6.86114643,4030.2,4030.1,0.002]
[1761068785976,0.2245,4030.7,4030.1,0.002]
[1761068786176,3.419,4030.6,4030.1,0.141]
[1761068786388,3.419,4030.6,4030.3,2.481162]
[1761068786543,3.419,4030.6,4030.2,0.139]
[1761068786881,3.419,4030.6,4030.1,0.002]
[1761068787087,2.98814643,4030.2,4030.1,0.002]
[1761068787586,3.44214643,4030.2,4030.1,0.002]
[1761068788475,6.86614643,4030.2,4030.1,0.002]
[1761068790153,8.42134643,4030.2,4030.1,0.002]
[1761068791174,30.57377633,4030.2,4030.1,0.002]
[1761068791351,30.55295672,4030.2,4030.1,0.002]
[1761068791685,33.09376172,4030.2,4030.1,0.002]
[1761068791992,30.55295672,4030.2,4030.1,0.002]
[1761068792507,7.43264682,4030.2,4030.1,0.002]
[1761068792668,8.39352682,4030.2,4030.1,0.002]
[1761068794085,8.39352682,4030.2,4029.7,0.002]
[1761068794086,4.54359273,4029.8,4029.7,0.002]
[1761068794292,7.96259273,4029.8,4029.7,0.002]
[1761068794583,8.41759273,4029.8,4029.7,0.002]
[1761068795966,2.48246311,4028.3,4027.6,2.48281212]
[1761068796292,3.417,4028.2,4027.6,2.4828682]
[1761068796496,3.417,4028.1,4027.6,2.8404682]
[1761068796695,3.417,4028.0,4027.8,2.48274413]
[1761068796895,3.417,4027.9,4027.8,2.48274413]
[1761068797498,3.417,4027.9,4027.8,2.84034413]
[1761068797798,3.417,4027.9,4027.6,2.48286069]
[1761068797984,3.417,4027.9,4027.8,2.48274492]
[1761068798186,0.454,4028.7,4027.7,0.3576]
[1761068798187,3.418,4028.0,4027.7,0.3576]
[1761068798365,3.418,4028.0,4027.7,2.4827823]
[1761068798561,3.418,4028.0,4027.1,1.02450827]
[1761068798764,3.418,4028.0,4027.5,2.48291615]
[1761068799174,3.418,4028.0,4027.7,2.4827832]
[1761068799504,3.418,4028.0,4027.0,0.139]
[1761068799505,5.89770884,4027.9,4027.0,0.139]
[1761068799667,2.98967979,4027.8,4027.1,2.48313278]
[1761068800317,2.48280656,4027.7,4027.0,0.139]
[1761068800597,0.50688,4027.8,4027.0,2.62221661]
[1761068800854,0.50688,4027.8,4027.0,0.139]
[1761068800855,2.48305873,4027.3,4027.0,0.139]
[1761068801001,3.415,4027.2,4026.7,2.62242012]
[1761068801299,3.415,4027.2,4026.7,0.139]
[1761068801472,3.415,4027.2,4026.8,0.3576]
[1761068801678,0.124,4027.0,4026.9,2.4832998]
[1761068802892,0.124,4027.0,4026.9,2.8408998]
[1761068803701,0.124,4027.0,4026.9,2.4832998]
[1761068803906,0.124,4027.0,4026.9,2.8408998]
[1761068804211,0.124,4027.0,4026.9,2.4832998]
[1761068804720,0.124,4027.0,4026.3,0.124]
[1761068805010,0.124,4026.7,4026.2,2.48373014]
[1761068805211,2.4831002,4027.3,4025.9,0.002]
[1761068805212,3.535,4026.6,4025.9,0.002]
[1761068805416,3.535,4026.6,4026.5,2.4835465]
[1761068805713,3.535,4026.6,4026.2,2.48373155]
[1761068805887,3.535,4026.6,4026.5,2.4835465]
[1761068806610,0.124,4026.6,4026.5,2.4835465]
[1761068806775,3.534,4026.6,4026.5,2.4835465]
[1761068806974,0.124,4026.6,4026.5,2.4835465]
[1761068807176,0.124,4026.6,4026.4,2.48355205]
[1761068807412,0.124,4026.6,4026.0,0.124]
[1761068807708,0.124,4026.6,4026.5,2.4835465]
[1761068808020,0.124,4026.6,4026.0,0.124]
[1761068808214,1.5552,4027.0,4025.9,0.002]
[1761068808215,2.99055957,4026.3,4025.9,0.002]
[1761068808511,1.5552,4026.4,4025.9,0.002]
[1761068808512,2.48385494,4026.0,4025.9,0.002]
[1761068808675,0.50688,4026.4,4025.9,0.002]
[1761068808880,0.50688,4026.4,4025.9,2.48591434]
[1761068808881,3.423,4026.3,4025.9,2.48591434]
[1761068809115,3.423,4026.3,4025.9,0.002]
[1761068809415,3.423,4026.3,4026.0,2.4838468]
[1761068809578,4.03860841,4026.8,4025.9,0.002]
[1761068809579,1.5552,4026.8,4025.9,0.002]
[1761068809783,1.655,4026.7,4025.9,0.3596]
[1761068810011,1.655,4026.6,4026.2,2.48366995]
[1761068810212,3.42,4026.5,4026.2,2.4837148]
[1761068810398,3.42,4026.5,4025.9,0.002]
[1761068810605,3.42,4026.5,4025.9,2.4859119]
[1761068810798,3.42,4026.5,4026.0,2.4838436]
[1761068811311,3.42,4026.4,4026.3,2.48361021]
[1761068811715,3.42,4026.4,4026.2,2.48372016]
[1761068811884,3.42,4026.4,4026.3,2.48366987]
[1761068812419,0.89496848,4029.0,4026.0,0.3576]
[1761068812420,1.5552,4027.5,4026.0,0.3576]
[1761068812717,1.5552,4027.3,4026.2,2.48373155]
[1761068812919,3.417,4027.2,4026.3,2.48366013]
[1761068813124,3.417,4027.2,4026.4,2.48357982]
[1761068813520,0.50688,4027.1,4025.9,0.002]
[1761068813819,2.99010148,4027.1,4026.3,2.48365601]
[1761068814023,2.99010148,4027.1,4026.4,2.48359247]
[1761068814487,0.50688,4027.1,4026.4,2.48359247]
[1761068814990,2.99011298,4027.1,4026.4,2.48359247]
[1761068815421,2.48324384,4027.0,4026.3,2.48365537]
[1761068815723,2.48323814,4027.0,4026.2,2.48368139]
[1761068816086,2.4833065,4026.9,4026.2,2.48368139]
[1761068816283,0.50688,4027.1,4026.3,2.48366885]
[1761068816500,2.48325679,4027.0,4026.3,2.48366885]
[1761068816696,3.417,4027.2,4026.1,0.02483793]
[1761068816899,3.411,4027.7,4027.1,0.139]
[1761068817085,3.411,4027.7,4027.2,2.48310531]
[1761068817308,3.411,4027.7,4027.3,2.48305222]
[1761068817708,3.411,4027.7,4027.4,2.48298828]
[1761068817911,3.411,4027.7,4027.3,2.48303892]
[1761068818101,0.124,4027.3,4027.2,2.48309719]
[1761068818422,0.124,4027.3,4027.0,2.48321218]
[1761068818923,0.124,4027.3,4026.8,2.62235685]
[1761068818924,0.124,4027.3,4026.8,0.139]
[1761068819138,0.124,4027.3,4027.0,2.48321874]
[1761068819290,0.124,4027.3,4026.8,0.139]
[1761068819291,0.124,4027.3,4026.9,0.3576]
[1761068819672,0.124,4027.3,4027.2,2.48311481]
[1761068820426,0.124,4027.3,4026.8,0.139]
[1761068820627,2.48292985,4027.5,4026.8,0.139]
[1761068820959,0.124,4027.1,4026.8,2.62236017]
[1761068821155,0.124,4027.1,4026.9,2.48328725]
[1761068821357,0.124,4027.1,4027.0,2.48323814]
[1761068821571,0.124,4027.3,4027.0,2.48323814]
[1761068822120,0.124,4027.3,4026.8,0.139]
[1761068822356,2.48319349,4027.1,4026.0,0.66562123]
[1761068822531,2.48319349,4027.1,4025.9,2.48589686]
[1761068822532,2.48338276,4026.8,4025.9,0.66762123]
[1761068822719,3.8425,4027.2,4026.0,0.02483854]
[1761068822720,3.413,4027.2,4026.0,0.02483854]
[1761068822918,3.413,4027.2,4026.8,2.48331454]
[1761068823119,3.413,4027.2,4026.2,0.69045854]
[1761068823377,3.413,4027.2,4026.8,2.48333787]
[1761068823554,2.48355782,4026.5,4026.2,0.66562123]
[1761068823881,0.2174,4027.6,4025.9,0.8861506]
[1761068823882,3.413,4026.6,4026.3,0.1434]
[1761068824155,3.414,4026.6,4026.3,0.1434]
[1761068824452,3.414,4026.6,4026.0,2.62725424]
[1761068824753,3.414,4026.6,4026.1,2.48378823]
[1761068824952,3.414,4026.6,4026.0,2.62724113]
[1761068825370,2.4843486,4025.2,4025.1,1e-08]
[1761068825582,4.54649032,4025.1,4024.3,0.002]
[1761068825875,2.99172246,4024.4,4024.3,0.002]
[1761068826075,7.98592246,4024.4,4024.3,0.002]
[1761068826224,8.94634435,4024.4,4024.3,0.002]
[1761068826422,8.41542246,4024.4,4024.3,0.002]
[1761068827279,8.34102246,4024.4,4024.3,0.002]
[1761068828070,2.48589255,4022.7,4022.6,0.002]
[1761068828292,32.60179045,4022.7,4022.6,0.002]
[1761068828577,32.60179045,4022.7,4022.2,0.002]
[1761068828578,26.70114424,4021.5,4020.9,0.002]
[1761068828763,26.70114424,4021.5,4018.9,2.49020117]
[1761068828764,1.5552,4021.1,4018.9,0.002]
[1761068828960,0.2174,4019.2,4016.5,0.2182]
[1761068829153,0.2174,4019.2,4016.6,3.69352]
[1761068829154,3.541,4019.1,4016.6,3.69352]
[1761068829393,2.06208,4019.0,4016.7,0.24509605]
[1761068829555,0.6469,4019.2,4016.8,0.02489543]
[1761068829759,3.541,4019.5,4016.9,2.508803]
[1761068830103,3.541,4019.5,4017.1,2.48935799]
[1761068830250,3.541,4019.5,4018.0,2.4887862]
[1761068830451,3.541,4019.5,4018.2,2.48867652]
[1761068830652,3.541,4019.5,4018.5,2.48846603]
[1761068830903,3.541,4019.5,4017.8,1.58008924]
[1761068831194,3.541,4019.5,4017.7,2.48895841]
[1761068831405,0.50688,4019.2,4017.5,0.9]
[1761068831554,0.4295,4019.4,4017.6,1.58009048]
[1761068831897,3.541,4019.5,4017.6,0.24509048]
[1761068832107,3.541,4019.5,4018.6,2.48840792]
[1761068832316,0.124,4018.8,4018.7,2.48836688]
[1761068832512,0.124,4019.2,4019.1,2.48808694]
[1761068833175,0.2174,4020.5,4019.1,0.24508119]
[1761068833376,3.548,4020.4,4019.1,2.48811923]
[1761068833573,3.548,4020.4,4019.7,2.48768736]
[1761068833793,3.548,4020.4,4019.8,2.48764988]
[1761068833982,3.548,4020.4,4019.1,0.9]
[1761068834182,3.548,4020.4,4019.8,2.4876731]
[1761068834393,3.548,4020.4,4019.6,2.48777161]
[1761068834593,3.548,4020.4,4019.1,0.9]
[1761068834777,3.548,4020.4,4019.8,2.48765055]
[1761068834974,3.548,4020.4,4019.1,3.38810881]
[1761068835179,3.548,4020.4,4019.7,2.48770976]
[1761068835379,3.548,4020.4,4019.8,2.48766886]
[1761068835574,3.548,4020.4,4019.1,1.1202]
[1761068835962,3.548,4020.4,4019.2,0.2202]
[1761068836165,3.548,4020.4,4019.3,2.48799542]
[1761068836366,3.548,4020.4,4020.2,2.48743337]
[1761068836572,0.2174,4021.6,4019.4,0.24507933]
[1761068836768,0.2174,4021.6,4020.6,2.48713689]
[1761068836998,0.2174,4021.6,4019.4,3.7642]
[1761068836999,0.213,4021.5,4019.5,1.5552]
[1761068837201,22.88102703,4021.4,4019.1,0.9]
[1761068837388,0.50688,4020.7,4018.8,1.5552]
[1761068837590,0.2174,4021.6,4018.7,0.2202]
[1761068837591,6.03019225,4020.6,4018.7,0.2202]
[1761068837788,6.03426042,4020.5,4019.4,2.48792535]
[1761068837991,0.2174,4020.4,4019.5,2.48784005]
[1761068838190,3.547,4020.5,4018.9,0.2202]
[1761068838427,3.547,4020.5,4019.2,1.5552]
[1761068838570,3.547,4020.5,4018.9,1.7754]
[1761068838770,3.547,4020.5,4019.4,4.04313352]
[1761068839105,3.547,4020.5,4020.3,2.4873656]
[1761068839265,3.547,4020.5,4020.4,2.48731469]
[1761068839471,3.547,4021.0,4019.9,4.04282407]
[1761068839703,3.547,4021.0,4020.9,2.48700539]
[1761068839870,3.547,4021.0,4020.0,2.48756218]
[1761068840072,3.547,4021.0,4020.1,2.48750031]
[1761068840402,3.547,4021.0,4020.9,2.48700539]
[1761068840604,3.545,4021.5,4020.6,2.48715598]
[1761068840769,3.545,4021.5,4020.7,2.48707869]
[1761068840969,3.545,4021.5,4020.8,2.487051]
[1761068841175,3.545,4021.5,4020.2,2.48743843]
[1761068841605,3.545,4021.5,4020.1,2.48750031]
[1761068841903,3.545,4021.5,4021.2,2.486786]
[1761068842312,3.545,4021.5,4021.3,2.48675647]
[1761068842614,3.545,4021.5,4021.2,2.48680826]
[1761068842807,3.545,4021.5,4020.9,2.48698119]
[1761068842808,3.545,4021.5,4021.3,2.48675356]
[1761068843316,0.124,4021.3,4021.2,2.48681985]
[1761068843608,3.545,4021.5,4021.4,2.48669617]
[1761068843609,3.669,4021.5,4021.4,2.48669617]
[1761068843979,0.124,4021.5,4021.4,2.48669617]
[1761068844185,0.124,4021.8,4021.7,2.48650802]
[1761068844881,0.124,4021.8,4021.6,2.48656057]
[1761068845081,0.124,4021.8,4021.7,2.48651067]
[1761068845517,0.124,4021.8,4021.5,2.48659111]
[1761068845717,0.124,4021.8,4021.6,2.48656853]
[1761068845953,0.001,4021.5,4021.2,0.124]
[1761068846221,0.124,4021.2,4020.5,2.48725282]
[1761068846382,0.124,4020.8,4020.3,1.7754]
[1761068846582,0.124,4020.8,4020.7,2.48708466]
[1761068847091,0.124,4020.8,4020.6,2.48718113]
[1761068847305,0.124,4020.8,4020.4,4.0425115]
[1761068847514,0.124,4020.8,4020.7,2.4871291]
[1761068848203,3.529,4021.4,4021.0,2.48689493]
[1761068848413,3.529,4021.4,4020.9,2.48694927]
[1761068848414,0.124,4021.0,4020.9,2.48694927]
[1761068848621,0.124,4021.0,4020.3,0.3442]
[1761068848822,0.124,4021.0,4020.9,2.48700539]
[1761068849035,3.529,4021.4,4020.5,0.2202]
[1761068849332,0.124,4021.3,4021.1,2.48688169]
[1761068849534,0.124,4021.3,4020.6,0.124]
[1761068850135,0.124,4021.3,4021.2,2.48681985]
[1761068851031,0.001,4021.5,4021.2,2.48681985]
[1761068851341,0.001,4021.5,4021.4,2.48669617]
[1761068852100,0.001,4021.5,4021.4,2.51156313]
[1761068852306,0.001,4021.5,4021.4,2.83089617]
[1761068852534,0.001,4021.5,4021.4,6.34589617]
[1761068853042,0.001,4021.5,4021.4,2.83089617]
[1761068853344,0.001,4021.5,4021.4,4.38609617]
[1761068853545,0.001,4021.5,4021.4,5.16209617]
[1761068853954,0.001,4021.5,4021.2,2.48675992]
[1761068854103,0.001,4021.5,4020.9,1.5552]
[1761068854298,0.001,4021.5,4021.3,2.48674772]
[1761068854505,0.001,4021.5,4020.9,1.5552]
[1761068854506,0.001,4021.5,4021.0,0.9]
[1761068854949,0.001,4021.5,4021.4,2.48669617]
[1761068856021,0.001,4021.5,4021.3,2.48669963]
[1761068856221,0.001,4021.5,4020.9,3.508]
[1761068856421,0.001,4021.5,4020.9,4.408]
[1761068856719,0.001,4021.5,4021.4,2.48669617]
[1761068859239,0.001,4021.5,4021.0,2.48694354]
[1761068859547,0.001,4021.5,4021.4,2.48669617]
[1761068860744,0.001,4021.5,4021.4,2.73176313]
[1761068861134,0.001,4021.5,4021.4,2.48669617]
[1761068861359,0.001,4021.5,4021.4,3.38669617]
[1761068862022,0.001,4021.5,4021.4,0.9]
[1761068862362,0.001,4021.5,4021.4,2.48669617]
[1761068863356,0.001,4021.5,4021.4,2.63556313]
[1761068863525,0.001,4021.5,4021.4,2.85576313]
[1761068863725,0.001,4021.5,4021.4,2.61069617]
[1761068863925,0.001,4021.5,4021.4,6.10269617]
[1761068864525,0.001,4021.5,4021.4,6.32289617]
[1761068865071,0.001,4021.5,4021.4,6.10269617]
[1761068865232,0.001,4021.5,4021.4,6.09969617]
[1761068865622,0.001,4021.5,4021.4,2.61069617]
[1761068866763,0.001,4021.5,4021.4,2.83089617]
[1761068867144,0.001,4021.5,4021.4,2.61069617]
[1761068868230,0.001,4022.4,4022.3,2.48613977]
[1761068868427,0.001,4022.4,4022.3,7.67520116]
[1761068868634,0.124,4024.0,4023.9,2.48515122]
[1761068868845,4.7896793,4024.6,4024.3,2.48485113]
[1761068868846,0.66038574,4024.5,4024.3,2.48485113]
[1761068869138,3.609,4024.6,4024.4,2.48482778]
[1761068869341,3.609,4024.6,4024.4,2.48482879]
[1761068869538,3.609,4024.6,4023.9,2.60913324]
[1761068869738,0.4619,4024.5,4023.2,0.2192]
[1761068870064,0.124,4024.1,4023.5,2.60934287]
[1761068870252,0.124,4024.1,4023.5,0.124]
[1761068870581,0.124,4024.1,4023.2,1.1192]
[1761068870582,0.2169,4025.2,4024.7,2.48463995]
[1761068870742,0.2169,4025.2,4024.5,2.48471952]
[1761068871066,0.2169,4025.2,4024.6,2.48466359]
[1761068871427,0.2169,4025.2,4024.1,0.9]
[1761068871628,0.2169,4025.2,4024.3,2.48489266]
[1761068871875,0.2169,4025.2,4024.2,0.02484965]
[1761068872033,0.2169,4026.0,4025.4,2.48422002]
[1761068872442,0.2169,4026.0,4025.5,2.48416323]
[1761068872844,0.6788,4026.0,4025.5,2.48416323]
[1761068873048,0.6788,4026.0,4025.0,2.48441945]
[1761068873247,0.6788,4026.0,4025.5,2.48412013]
[1761068873452,0.6788,4026.0,4025.1,0.0248441]
[1761068873949,0.6788,4026.0,4025.4,2.48418334]
[1761068874154,0.6788,4026.0,4024.8,2.48459172]
[1761068874467,0.6788,4026.0,4024.9,0.02484533]
[1761068874671,0.6788,4026.0,4025.0,2.48447204]
[1761068874868,3.478,4026.4,4025.1,0.0248441]
[1761068875034,3.47,4026.9,4026.1,2.48377759]
[1761068875235,3.47,4026.9,4025.7,3.47]
[1761068875437,3.47,4026.9,4026.3,2.48361986]
[1761068875635,3.47,4026.9,4025.7,3.47]
[1761068875853,3.47,4026.9,4026.5,2.48354248]
[1761068876072,3.47,4026.9,4025.8,0.2192]
[1761068876372,2.48342315,4026.7,4025.6,5.95205295]
[1761068876550,2.483764,4026.2,4025.3,2.48427799]
[1761068876874,0.4399,4026.7,4025.3,0.9]
[1761068877249,0.4399,4026.7,4025.3,0.92484286]
[1761068877450,2.48335572,4026.9,4026.0,2.48382286]
[1761068877655,2.48335572,4026.9,4025.6,5.94909947]
[1761068877656,0.4399,4026.8,4025.6,5.94909947]
[1761068877856,0.4399,4026.8,4025.4,3.465]
[1761068878061,2.92327176,4026.8,4025.4,3.465]
[1761068878454,2.48343746,4026.7,4026.0,2.48382897]
[1761068878685,2.48349683,4026.6,4025.5,2.48414601]
[1761068878886,2.48362574,4026.4,4025.6,2.48405835]
[1761068879173,2.48362574,4026.4,4025.3,0.9]
[1761068879174,2.48355754,4026.5,4025.8,2.48396591]
[1761068879869,0.4399,4026.6,4025.3,0.9]
[1761068880073,0.4399,4026.4,4025.5,2.48416266]
[1761068880279,2.48379987,4026.1,4025.4,2.48421629]
[1761068880460,2.48374422,4026.2,4025.6,0.124]
[1761068880781,0.124,4026.3,4025.6,0.124]
[1761068880978,0.2292,4025.7,4025.6,0.124]
[1761068881290,0.50688,4025.6,4022.6,22.88102703]
[1761068881457,2.48447028,4025.1,4024.0,2.60907692]
[1761068881775,0.124,4024.7,4024.1,2.48502703]
[1761068881939,3.9029,4025.4,4023.3,0.9]
[1761068882139,3.463,4025.4,4023.6,2.99221651]
[1761068882360,3.463,4025.4,4023.8,0.50688]
[1761068882761,3.463,4025.4,4025.0,2.48446749]
[1761068883775,0.4399,4025.3,4024.9,2.48453005]
[1761068883972,0.4399,4025.3,4024.3,0.9]
[1761068884271,3.463,4025.4,4024.2,3.465]
[1761068884470,3.463,4025.4,4025.0,2.48446739]
[1761068884699,3.463,4025.4,4024.8,2.48457942]
[1761068884862,3.463,4025.4,4024.9,2.48453128]
[1761068885065,0.4399,4025.3,4024.5,2.48472765]
[1761068885401,0.4399,4025.3,4023.7,0.50688]
[1761068885402,2.4843486,4025.2,4024.0,3.462]
[1761068885595,2.4843486,4025.2,4024.5,2.48477978]
[1761068885794,0.4399,4025.3,4024.0,3.462]
[1761068885795,2.9241942,4025.3,4024.0,3.462]
[1761068885996,2.9241942,4025.3,4024.6,2.48471416]